[Event "Titled Tuesday Blitz November 15 Early 2022"]
[White "Wirig, Anthony"]
[Black "Tanenbaum, Zachary"]
[WhiteFideId "615013"]
[BlackFideId "2060850"]
[WhiteElo "2487"]
[BlackElo "2175"]
[Result "1/2-1/2"]
[Round "08"]
[TimeControl "180+1"]
[Date "2022.11.16"]
[WhiteClock "0:00:15"]
[BlackClock "0:00:11"]

1. d4 {[%clk 0:03:00]}  d5 {[%clk 0:03:00]} 2. Nf3 {[%clk 0:03:00]}  Nf6 {[%clk 0:02:58]} 3. c4 {[%clk 0:03:00]}  dxc4 {[%clk 0:02:58]} 4. e3 {[%clk 0:03:00]}  Bg4 {[%clk 0:02:57]} 5. Bxc4 {[%clk 0:03:00]}  e6 {[%clk 0:02:57]} 6. h3 {[%clk 0:02:59]}  Bh5 {[%clk 0:02:57]} 7. Nc3 {[%clk 0:02:58]}  Nbd7 {[%clk 0:02:56]} 8. Qe2 {[%clk 0:02:57]}  Bb4 {[%clk 0:02:54]} 9. O-O {[%clk 0:02:51]}  O-O {[%clk 0:02:51]} 10. Rd1 {[%clk 0:02:44]}  Qe7 {[%clk 0:02:45]} 11. e4 {[%clk 0:02:41]}  e5 {[%clk 0:02:39]} 12. d5 {[%clk 0:01:54]}  Rfd8 {[%clk 0:02:29]} 13. Bg5 {[%clk 0:01:49]}  h6 {[%clk 0:02:29]} 14. Bh4 {[%clk 0:01:50]}  Nc5 {[%clk 0:02:24]} 15. Bxf6 {[%clk 0:01:22]}  Qxf6 {[%clk 0:02:23]} 16. Nb5 {[%clk 0:01:22]}  a6 {[%clk 0:02:17]} 17. Nxc7 {[%clk 0:01:13]}  Rac8 {[%clk 0:02:17]} 18. d6 {[%clk 0:01:12]}  Bxf3 {[%clk 0:02:02]} 19. Qxf3 {[%clk 0:01:01]}  Qxf3 {[%clk 0:01:58]} 20. gxf3 {[%clk 0:01:02]}  Na4 {[%clk 0:01:57]} 21. Bb3 {[%clk 0:00:32]}  Nxb2 {[%clk 0:01:53]} 22. Rdc1 {[%clk 0:00:27]}  Nd3 {[%clk 0:01:49]} 23. Rc2 {[%clk 0:00:20]}  Nf4 {[%clk 0:01:47]} 24. Nd5 {[%clk 0:00:16]}  Rxc2 {[%clk 0:01:43]} 25. Bxc2 {[%clk 0:00:15]}  Nxd5 {[%clk 0:01:35]} 26. exd5 {[%clk 0:00:16]}  Rxd6 {[%clk 0:01:34]} 27. Rb1 {[%clk 0:00:16]}  a5 {[%clk 0:01:29]} 28. a3 {[%clk 0:00:16]}  Bxa3 {[%clk 0:01:29]} 29. Rxb7 {[%clk 0:00:17]}  Rxd5 {[%clk 0:01:28]} 30. Bb3 {[%clk 0:00:17]}  Rd3 {[%clk 0:01:22]} 31. Bxf7+ {[%clk 0:00:15]}  Kh7 {[%clk 0:01:19]} 32. h4 {[%clk 0:00:11]}  Rxf3 {[%clk 0:01:00]} 33. h5 {[%clk 0:00:12]}  Bc5 {[%clk 0:00:59]} 34. Bg6+ {[%clk 0:00:08]}  Kg8 {[%clk 0:00:59]} 35. Rb8+ {[%clk 0:00:08]}  Rf8 {[%clk 0:00:58]} 36. Rxf8+ {[%clk 0:00:04]}  Kxf8 {[%clk 0:00:58]} 37. Bc2 {[%clk 0:00:05]}  Ke7 {[%clk 0:00:57]} 38. Kg2 {[%clk 0:00:06]}  Kf6 {[%clk 0:00:57]} 39. Kg3 {[%clk 0:00:06]}  Kg5 {[%clk 0:00:57]} 40. Bd1 {[%clk 0:00:06]}  e4 {[%clk 0:00:43]} 41. Kg2 {[%clk 0:00:06]}  Kf4 {[%clk 0:00:43]} 42. Ba4 {[%clk 0:00:06]}  e3 {[%clk 0:00:42]} 43. fxe3+ {[%clk 0:00:06]}  Kxe3 {[%clk 0:00:42]} 44. Kg3 {[%clk 0:00:07]}  Bd4 {[%clk 0:00:42]} 45. Kg4 {[%clk 0:00:06]}  Bf6 {[%clk 0:00:41]} 46. Be8 {[%clk 0:00:06]}  Kd3 {[%clk 0:00:40]} 47. Kf3 {[%clk 0:00:07]}  Kc3 {[%clk 0:00:40]} 48. Ke2 {[%clk 0:00:07]}  Kb4 {[%clk 0:00:40]} 49. Kd2 {[%clk 0:00:08]}  a4 {[%clk 0:00:40]} 50. Kc2 {[%clk 0:00:08]}  a3 {[%clk 0:00:40]} 51. Bf7 {[%clk 0:00:09]}  Kb5 {[%clk 0:00:35]} 52. Kb3 {[%clk 0:00:08]}  Be7 {[%clk 0:00:35]} 53. Ka2 {[%clk 0:00:09]}  Bc5 {[%clk 0:00:32]} 54. Bg6 {[%clk 0:00:10]}  Kc6 {[%clk 0:00:32]} 55. Be8+ {[%clk 0:00:10]}  Kd5 {[%clk 0:00:32]} 56. Bg6 {[%clk 0:00:11]}  Kc4 {[%clk 0:00:31]} 57. Bf7+ {[%clk 0:00:11]}  Kd4 {[%clk 0:00:31]} 58. Bg6 {[%clk 0:00:11]}  Ke5 {[%clk 0:00:32]} 59. Kb3 {[%clk 0:00:12]}  Bd6 {[%clk 0:00:31]} 60. Ka2 {[%clk 0:00:13]}  Kd4 {[%clk 0:00:31]} 61. Kb3 {[%clk 0:00:13]}  Kd5 {[%clk 0:00:30]} 62. Ka2 {[%clk 0:00:14]}  Kc4 {[%clk 0:00:30]} 63. Bf7+ {[%clk 0:00:14]}  Kb4 {[%clk 0:00:30]} 64. Bg6 {[%clk 0:00:15]}  Bf8 {[%clk 0:00:30]} 65. Bf7 {[%clk 0:00:14]}  g5 {[%clk 0:00:24]} 66. hxg6 {[%clk 0:00:15]}  Bg7 {[%clk 0:00:23]} 67. Be6 {[%clk 0:00:15]}  h5 {[%clk 0:00:23]} 68. Bh3 {[%clk 0:00:15]}  h4 {[%clk 0:00:22]} 69. Bg4 {[%clk 0:00:15]}  Bf6 {[%clk 0:00:21]} 70. Bh3 {[%clk 0:00:15]}  Bg7 {[%clk 0:00:13]} 71. Bg4 {[%clk 0:00:15]}  Bf8 {[%clk 0:00:14]} 72. Bh3 {[%clk 0:00:15]}  Kc3 {[%clk 0:00:13]} 73. g7 {[%clk 0:00:15]}  Bxg7 {[%clk 0:00:13]} 74. Kxa3 {[%clk 0:00:16]}  Kd3 {[%clk 0:00:13]} 75. Bd7 {[%clk 0:00:15]}  h3 {[%clk 0:00:11]} 1/2-1/2


[Site "https://www.chess.com"]

[Event "Titled Tuesday Blitz November 15 Early 2022"]
[White "Xiong, Jeffery"]
[Black "Acor, Corey"]
[WhiteFideId "2047640"]
[BlackFideId "2024861"]
[WhiteElo "2725"]
[BlackElo "2340"]
[Result "1-0"]
[Round "08"]
[TimeControl "180+1"]
[Date "2022.11.15"]
[WhiteClock "0:00:52"]
[BlackClock "0:00:06"]

1. e4 {[%clk 0:03:00]}  e5 {[%clk 0:02:55]} 2. Nf3 {[%clk 0:03:01]}  Nc6 {[%clk 0:02:56]} 3. d4 {[%clk 0:03:01]}  exd4 {[%clk 0:02:55]} 4. Nxd4 {[%clk 0:03:02]}  Bc5 {[%clk 0:02:55]} 5. Nxc6 {[%clk 0:03:02]}  Qf6 {[%clk 0:02:54]} 6. Qf3 {[%clk 0:03:02]}  dxc6 {[%clk 0:02:55]} 7. Nc3 {[%clk 0:02:55]}  Qxf3 {[%clk 0:02:30]} 8. gxf3 {[%clk 0:02:56]}  Bd7 {[%clk 0:02:28]} 9. Rg1 {[%clk 0:02:55]}  g6 {[%clk 0:02:27]} 10. Bg5 {[%clk 0:02:53]}  Be7 {[%clk 0:02:17]} 11. Be3 {[%clk 0:02:49]}  Nf6 {[%clk 0:02:05]} 12. O-O-O {[%clk 0:02:48]}  a6 {[%clk 0:01:59]} 13. Bc4 {[%clk 0:02:38]}  O-O-O {[%clk 0:01:41]} 14. e5 {[%clk 0:02:25]}  Nh5 {[%clk 0:01:26]} 15. Bxf7 {[%clk 0:02:25]}  Rhf8 {[%clk 0:01:26]} 16. e6 {[%clk 0:02:10]}  Be8 {[%clk 0:01:25]} 17. Bh6 {[%clk 0:02:11]}  Rh8 {[%clk 0:01:14]} 18. Ne4 {[%clk 0:02:08]}  Rd5 {[%clk 0:01:06]} 19. Ng3 {[%clk 0:01:22]}  Bg5+ {[%clk 0:00:45]} 20. Bxg5 {[%clk 0:01:09]}  Rxg5 {[%clk 0:00:46]} 21. Rge1 {[%clk 0:00:56]}  Rd5 {[%clk 0:00:31]} 22. Rxd5 {[%clk 0:00:54]}  cxd5 {[%clk 0:00:32]} 23. Nxh5 {[%clk 0:00:54]}  gxh5 {[%clk 0:00:32]} 24. Re5 {[%clk 0:00:55]}  c6 {[%clk 0:00:28]} 25. Rxh5 {[%clk 0:00:54]}  Bxf7 {[%clk 0:00:23]} 26. exf7 {[%clk 0:00:54]}  Kd7 {[%clk 0:00:22]} 27. Rxh7 {[%clk 0:00:55]}  Rf8 {[%clk 0:00:14]} 28. Kd2 {[%clk 0:00:56]}  Ke6 {[%clk 0:00:12]} 29. Ke3 {[%clk 0:00:56]}  Rxf7 {[%clk 0:00:09]} 30. Rxf7 {[%clk 0:00:55]}  Kxf7 {[%clk 0:00:10]} 31. Kd4 {[%clk 0:00:55]}  Ke6 {[%clk 0:00:07]} 32. Kc5 {[%clk 0:00:55]}  Ke5 {[%clk 0:00:07]} 33. h4 {[%clk 0:00:53]}  Kf4 {[%clk 0:00:06]} 34. b4 {[%clk 0:00:52]} 1-0


[Site "https://www.chess.com"]

[Event "Titled Tuesday Blitz November 15 Early 2022"]
[White "Zaichenko, Daria"]
[Black "Sowul, Bartosz"]
[WhiteFideId "4197453"]
[BlackFideId "1137590"]
[WhiteElo "2039"]
[BlackElo "2188"]
[Result "0-1"]
[Round "08"]
[TimeControl "180+1"]
[Date "2022.11.16"]
[WhiteClock "0:00:02"]
[BlackClock "0:00:02"]

1. e4 {[%clk 0:03:00]}  c5 {[%clk 0:02:58]} 2. Nf3 {[%clk 0:03:00]}  d6 {[%clk 0:02:59]} 3. d4 {[%clk 0:02:58]}  cxd4 {[%clk 0:03:00]} 4. Nxd4 {[%clk 0:02:56]}  Nf6 {[%clk 0:03:00]} 5. Nc3 {[%clk 0:02:55]}  Nc6 {[%clk 0:03:00]} 6. Bc4 {[%clk 0:02:52]}  Qb6 {[%clk 0:02:58]} 7. Nb3 {[%clk 0:02:34]}  e6 {[%clk 0:02:57]} 8. Be3 {[%clk 0:02:32]}  Qc7 {[%clk 0:02:55]} 9. O-O {[%clk 0:02:28]}  a6 {[%clk 0:02:53]} 10. a4 {[%clk 0:02:27]}  b6 {[%clk 0:02:49]} 11. f4 {[%clk 0:02:25]}  Be7 {[%clk 0:02:40]} 12. Qe2 {[%clk 0:02:23]}  O-O {[%clk 0:02:30]} 13. h3 {[%clk 0:02:19]}  Bb7 {[%clk 0:02:26]} 14. Qf2 {[%clk 0:01:59]}  Nd7 {[%clk 0:02:21]} 15. f5 {[%clk 0:01:55]}  Nce5 {[%clk 0:02:04]} 16. Be2 {[%clk 0:01:50]}  Nc5 {[%clk 0:01:55]} 17. Nxc5 {[%clk 0:01:33]}  bxc5 {[%clk 0:01:55]} 18. Qg3 {[%clk 0:01:32]}  Kh8 {[%clk 0:01:42]} 19. Bf4 {[%clk 0:01:22]}  Bf6 {[%clk 0:01:40]} 20. Qh2 {[%clk 0:01:16]}  c4 {[%clk 0:01:32]} 21. g4 {[%clk 0:01:06]}  exf5 {[%clk 0:01:25]} 22. g5 {[%clk 0:01:01]}  Qb6+ {[%clk 0:01:11]} 23. Rf2 {[%clk 0:00:51]}  Bd8 {[%clk 0:01:00]} 24. exf5 {[%clk 0:00:35]}  Qxb2 {[%clk 0:00:56]} 25. Rb1 {[%clk 0:00:35]}  Qxc3 {[%clk 0:00:55]} 26. Rxb7 {[%clk 0:00:34]}  f6 {[%clk 0:00:44]} 27. h4 {[%clk 0:00:26]}  Qa1+ {[%clk 0:00:16]} 28. Kg2 {[%clk 0:00:23]}  Qxa4 {[%clk 0:00:10]} 29. Bxe5 {[%clk 0:00:20]}  dxe5 {[%clk 0:00:10]} 30. Bf3 {[%clk 0:00:20]}  Rc8 {[%clk 0:00:09]} 31. g6 {[%clk 0:00:16]}  h6 {[%clk 0:00:08]} 32. Qg1 {[%clk 0:00:14]}  Qe8 {[%clk 0:00:07]} 33. Qd1 {[%clk 0:00:11]}  e4 {[%clk 0:00:07]} 34. Re2 {[%clk 0:00:10]}  Qe5 {[%clk 0:00:04]} 35. Rxe4 {[%clk 0:00:07]}  Qxf5 {[%clk 0:00:04]} 36. Rg4 {[%clk 0:00:02]}  Bc7 {[%clk 0:00:02]} 0-1


[Site "https://www.chess.com"]

[Event "Titled Tuesday Blitz November 15 Early 2022"]
[White "Zemlyanskii, Ivan"]
[Black "Donskov, Anatoly"]
[WhiteFideId "24249971"]
[BlackFideId "24143413"]
[WhiteElo "2107"]
[BlackElo "2219"]
[Result "1-0"]
[Round "08"]
[TimeControl "180+1"]
[Date "2022.11.16"]
[WhiteClock "0:00:46"]
[BlackClock "0:00:15"]

1. d4 {[%clk 0:03:00]}  d5 {[%clk 0:02:59]} 2. c4 {[%clk 0:03:01]}  dxc4 {[%clk 0:03:00]} 3. e3 {[%clk 0:03:01]}  e5 {[%clk 0:02:51]} 4. Bxc4 {[%clk 0:03:02]}  exd4 {[%clk 0:02:50]} 5. exd4 {[%clk 0:03:02]}  Nf6 {[%clk 0:02:49]} 6. Nf3 {[%clk 0:03:00]}  Be7 {[%clk 0:02:44]} 7. O-O {[%clk 0:02:59]}  O-O {[%clk 0:02:44]} 8. Nc3 {[%clk 0:03:00]}  Nbd7 {[%clk 0:02:44]} 9. Re1 {[%clk 0:02:57]}  Nb6 {[%clk 0:02:44]} 10. Bb3 {[%clk 0:02:58]}  Bg4 {[%clk 0:02:38]} 11. h3 {[%clk 0:02:58]}  Bh5 {[%clk 0:02:38]} 12. g4 {[%clk 0:02:58]}  Bg6 {[%clk 0:02:38]} 13. Ne5 {[%clk 0:02:58]}  c6 {[%clk 0:02:33]} 14. f4 {[%clk 0:02:57]}  c5 {[%clk 0:02:20]} 15. f5 {[%clk 0:02:22]}  cxd4 {[%clk 0:02:20]} 16. Ne2 {[%clk 0:02:20]}  Bc5 {[%clk 0:01:56]} 17. Nf4 {[%clk 0:02:08]}  d3+ {[%clk 0:01:25]} 18. Kg2 {[%clk 0:02:01]}  Qd4 {[%clk 0:01:01]} 19. fxg6 {[%clk 0:01:34]}  hxg6 {[%clk 0:00:43]} 20. Nfxd3 {[%clk 0:00:57]}  Bd6 {[%clk 0:00:32]} 21. Be3 {[%clk 0:00:49]}  Qe4+ {[%clk 0:00:31]} 22. Qf3 {[%clk 0:00:49]}  Rae8 {[%clk 0:00:14]} 23. Qxe4 {[%clk 0:00:47]}  Nxe4 {[%clk 0:00:15]} 24. Nxg6 {[%clk 0:00:46]} 1-0


[Site "https://www.chess.com"]

[Event "Titled Tuesday Blitz November 15 Early 2022"]
[White "Acor, Corey"]
[Black "Seemann, Jakub"]
[WhiteFideId "2024861"]
[BlackFideId "21874697"]
[WhiteElo "2340"]
[BlackElo "2275"]
[Result "1-0"]
[Round "09"]
[TimeControl "180+1"]
[Date "2022.11.16"]
[WhiteClock "0:00:11"]
[BlackClock "0:00:04"]

1. e4 {[%clk 0:03:00]}  e6 {[%clk 0:02:59]} 2. d3 {[%clk 0:02:58]}  d5 {[%clk 0:02:59]} 3. Nd2 {[%clk 0:02:59]}  Nf6 {[%clk 0:02:58]} 4. g3 {[%clk 0:02:59]}  c5 {[%clk 0:02:58]} 5. Bg2 {[%clk 0:02:59]}  Nc6 {[%clk 0:02:58]} 6. Ngf3 {[%clk 0:02:59]}  Be7 {[%clk 0:02:57]} 7. O-O {[%clk 0:02:58]}  Qc7 {[%clk 0:02:57]} 8. exd5 {[%clk 0:02:39]}  exd5 {[%clk 0:02:56]} 9. d4 {[%clk 0:02:38]}  c4 {[%clk 0:02:52]} 10. Re1 {[%clk 0:02:35]}  O-O {[%clk 0:02:48]} 11. c3 {[%clk 0:02:35]}  Bf5 {[%clk 0:02:47]} 12. Ne5 {[%clk 0:02:33]}  Bd6 {[%clk 0:02:42]} 13. f4 {[%clk 0:02:26]}  Rad8 {[%clk 0:02:26]} 14. h3 {[%clk 0:02:11]}  Qc8 {[%clk 0:01:48]} 15. g4 {[%clk 0:02:09]}  Be4 {[%clk 0:01:44]} 16. Nxe4 {[%clk 0:02:07]}  Nxe4 {[%clk 0:01:38]} 17. Nxc4 {[%clk 0:01:48]}  Bb8 {[%clk 0:01:21]} 18. Ne3 {[%clk 0:01:37]}  Ne7 {[%clk 0:00:58]} 19. Nxd5 {[%clk 0:01:19]}  Nxd5 {[%clk 0:00:55]} 20. Bxe4 {[%clk 0:01:05]}  Nxc3 {[%clk 0:00:48]} 21. bxc3 {[%clk 0:00:57]}  Qxc3 {[%clk 0:00:48]} 22. Be3 {[%clk 0:00:56]}  Rfe8 {[%clk 0:00:32]} 23. Qd3 {[%clk 0:00:54]}  Qb4 {[%clk 0:00:27]} 24. Rab1 {[%clk 0:00:38]}  Qe7 {[%clk 0:00:24]} 25. Bxh7+ {[%clk 0:00:36]}  Kh8 {[%clk 0:00:25]} 26. Bf2 {[%clk 0:00:36]}  Qf6 {[%clk 0:00:20]} 27. Bf5 {[%clk 0:00:32]}  g6 {[%clk 0:00:18]} 28. Be4 {[%clk 0:00:27]}  Qxf4 {[%clk 0:00:18]} 29. Bg2 {[%clk 0:00:27]}  Rxe1+ {[%clk 0:00:12]} 30. Rxe1 {[%clk 0:00:26]}  Rc8 {[%clk 0:00:12]} 31. d5 {[%clk 0:00:24]}  Bd6 {[%clk 0:00:12]} 32. Qd4+ {[%clk 0:00:24]}  Kg8 {[%clk 0:00:12]} 33. Qxf4 {[%clk 0:00:24]}  Bxf4 {[%clk 0:00:12]} 34. Bxa7 {[%clk 0:00:22]}  Bd6 {[%clk 0:00:09]} 35. Bd4 {[%clk 0:00:22]}  Ra8 {[%clk 0:00:09]} 36. Re2 {[%clk 0:00:22]}  Ra4 {[%clk 0:00:09]} 37. Bf6 {[%clk 0:00:21]}  Kf8 {[%clk 0:00:08]} 38. Bf1 {[%clk 0:00:20]}  Rf4 {[%clk 0:00:07]} 39. g5 {[%clk 0:00:19]}  Bc5+ {[%clk 0:00:07]} 40. Kg2 {[%clk 0:00:16]}  b6 {[%clk 0:00:08]} 41. Rd2 {[%clk 0:00:14]}  Bd6 {[%clk 0:00:06]} 42. Bb5 {[%clk 0:00:13]}  Rd4 {[%clk 0:00:04]} 43. Rxd4 {[%clk 0:00:11]} 1-0


[Site "https://www.chess.com"]

[Event "Titled Tuesday Blitz November 15 Early 2022"]
[White "Andreikin, Dmitry"]
[Black "Pichot, Alan"]
[WhiteFideId "4158814"]
[BlackFideId "110973"]
[WhiteElo "2736"]
[BlackElo "2560"]
[Result "0-1"]
[Round "09"]
[TimeControl "180+1"]
[Date "2022.11.15"]
[WhiteClock "0:00:02"]
[BlackClock "0:00:28"]

1. c4 {[%clk 0:03:00]}  Nf6 {[%clk 0:02:56]} 2. Nc3 {[%clk 0:03:00]}  g6 {[%clk 0:02:55]} 3. e4 {[%clk 0:02:59]}  d6 {[%clk 0:02:55]} 4. d4 {[%clk 0:02:59]}  Bg7 {[%clk 0:02:56]} 5. Be2 {[%clk 0:02:58]}  O-O {[%clk 0:02:57]} 6. Bg5 {[%clk 0:02:58]}  c5 {[%clk 0:02:55]} 7. d5 {[%clk 0:02:52]}  e6 {[%clk 0:02:55]} 8. Nf3 {[%clk 0:02:50]}  exd5 {[%clk 0:02:55]} 9. exd5 {[%clk 0:02:49]}  Bf5 {[%clk 0:02:51]} 10. O-O {[%clk 0:02:46]}  Re8 {[%clk 0:02:50]} 11. Nh4 {[%clk 0:02:43]}  Bd7 {[%clk 0:02:49]} 12. Bd3 {[%clk 0:02:42]}  h6 {[%clk 0:02:47]} 13. Bd2 {[%clk 0:02:34]}  Na6 {[%clk 0:02:39]} 14. Qc1 {[%clk 0:02:23]}  Nxd5 {[%clk 0:02:32]} 15. Nxd5 {[%clk 0:02:18]}  Qxh4 {[%clk 0:02:31]} 16. g3 {[%clk 0:02:08]}  Qd4 {[%clk 0:02:31]} 17. Qc2 {[%clk 0:01:55]}  Nb4 {[%clk 0:02:15]} 18. Bxb4 {[%clk 0:01:53]}  cxb4 {[%clk 0:02:16]} 19. Nc7 {[%clk 0:01:53]}  Qxb2 {[%clk 0:02:08]} 20. Qxb2 {[%clk 0:01:49]}  Bxb2 {[%clk 0:02:09]} 21. Rad1 {[%clk 0:01:47]}  Bc6 {[%clk 0:01:53]} 22. Nxa8 {[%clk 0:01:38]}  Rxa8 {[%clk 0:01:54]} 23. Rfe1 {[%clk 0:01:39]}  Bc3 {[%clk 0:01:43]} 24. Re3 {[%clk 0:01:38]}  Bd4 {[%clk 0:01:40]} 25. Ree1 {[%clk 0:01:38]}  Bc5 {[%clk 0:01:38]} 26. Be4 {[%clk 0:01:36]}  Kf8 {[%clk 0:01:31]} 27. Kf1 {[%clk 0:01:27]}  a5 {[%clk 0:01:31]} 28. Bxc6 {[%clk 0:01:24]}  bxc6 {[%clk 0:01:32]} 29. Ke2 {[%clk 0:01:24]}  a4 {[%clk 0:01:31]} 30. Rd3 {[%clk 0:01:22]}  Re8+ {[%clk 0:01:28]} 31. Kf1 {[%clk 0:01:21]}  Rb8 {[%clk 0:01:21]} 32. Re2 {[%clk 0:01:15]}  Rb7 {[%clk 0:01:09]} 33. Ke1 {[%clk 0:01:13]}  Re7 {[%clk 0:01:02]} 34. Rxe7 {[%clk 0:00:59]}  Kxe7 {[%clk 0:01:02]} 35. Ke2 {[%clk 0:00:56]}  Ke6 {[%clk 0:01:03]} 36. f3 {[%clk 0:00:52]}  f5 {[%clk 0:01:02]} 37. Kd1 {[%clk 0:00:51]}  g5 {[%clk 0:01:03]} 38. Kc2 {[%clk 0:00:48]}  h5 {[%clk 0:01:03]} 39. Rd2 {[%clk 0:00:47]}  g4 {[%clk 0:01:00]} 40. Re2+ {[%clk 0:00:47]}  Kf6 {[%clk 0:01:01]} 41. fxg4 {[%clk 0:00:37]}  hxg4 {[%clk 0:01:01]} 42. Kd3 {[%clk 0:00:35]}  Kf7 {[%clk 0:01:01]} 43. Re1 {[%clk 0:00:34]}  Bb6 {[%clk 0:00:56]} 44. Rh1 {[%clk 0:00:25]}  Kg6 {[%clk 0:00:52]} 45. Rb1 {[%clk 0:00:24]}  Bc5 {[%clk 0:00:51]} 46. Re1 {[%clk 0:00:24]}  Kf7 {[%clk 0:00:48]} 47. Re2 {[%clk 0:00:23]}  Bb6 {[%clk 0:00:46]} 48. Rd2 {[%clk 0:00:20]}  Ke6 {[%clk 0:00:44]} 49. Rd1 {[%clk 0:00:20]}  Bc5 {[%clk 0:00:43]} 50. Rh1 {[%clk 0:00:20]}  Kf6 {[%clk 0:00:43]} 51. Rf1 {[%clk 0:00:18]}  Kg5 {[%clk 0:00:41]} 52. Kc2 {[%clk 0:00:13]}  Bd4 {[%clk 0:00:38]} 53. Rd1 {[%clk 0:00:11]}  c5 {[%clk 0:00:37]} 54. Re1 {[%clk 0:00:11]}  Be5 {[%clk 0:00:31]} 55. Re2 {[%clk 0:00:09]}  f4 {[%clk 0:00:31]} 56. gxf4+ {[%clk 0:00:08]}  Kxf4 {[%clk 0:00:32]} 57. Kd3 {[%clk 0:00:06]}  Kf3 {[%clk 0:00:28]} 58. Rd2 {[%clk 0:00:05]}  b3 {[%clk 0:00:28]} 59. axb3 {[%clk 0:00:04]}  axb3 {[%clk 0:00:29]} 60. Rd1 {[%clk 0:00:03]}  Bxh2 {[%clk 0:00:27]} 61. Rf1+ {[%clk 0:00:04]}  Kg2 {[%clk 0:00:27]} 62. Rf8 {[%clk 0:00:03]}  Be5 {[%clk 0:00:27]} 63. Rb8 {[%clk 0:00:02]}  b2 {[%clk 0:00:27]} 64. Ke2 {[%clk 0:00:03]}  g3 {[%clk 0:00:27]} 65. Rb7 {[%clk 0:00:03]}  Kh2 {[%clk 0:00:28]} 66. Kf3 {[%clk 0:00:03]}  g2 {[%clk 0:00:27]} 67. Rh7+ {[%clk 0:00:02]}  Kg1 {[%clk 0:00:27]} 68. Rb7 {[%clk 0:00:02]}  Kf1 {[%clk 0:00:28]} 69. Rh7 {[%clk 0:00:02]} 0-1


[Site "https://www.chess.com"]

[Event "Titled Tuesday Blitz November 15 Early 2022"]
[White "Arbunic Castro, Giovanna"]
[Black "Ricaurte Lopez, Juan Carlos"]
[WhiteFideId "3400549"]
[BlackFideId "3600327"]
[WhiteElo "1897"]
[BlackElo "2209"]
[Result "1-0"]
[Round "09"]
[TimeControl "180+1"]
[Date "2022.11.16"]
[WhiteClock "0:01:53"]
[BlackClock "0:01:02"]

1. e4 {[%clk 0:02:57]}  e5 {[%clk 0:02:59]} 2. d4 {[%clk 0:02:56]}  exd4 {[%clk 0:02:56]} 3. Qxd4 {[%clk 0:02:55]}  Nc6 {[%clk 0:02:53]} 4. Qe3 {[%clk 0:02:54]}  g6 {[%clk 0:02:50]} 5. Nc3 {[%clk 0:02:53]}  Bg7 {[%clk 0:02:47]} 6. Bd2 {[%clk 0:02:53]}  Nge7 {[%clk 0:02:45]} 7. O-O-O {[%clk 0:02:52]}  O-O {[%clk 0:02:43]} 8. h4 {[%clk 0:02:52]}  h6 {[%clk 0:02:35]} 9. h5 {[%clk 0:02:28]}  g5 {[%clk 0:02:27]} 10. f4 {[%clk 0:02:27]}  gxf4 {[%clk 0:02:11]} 11. Qxf4 {[%clk 0:02:25]}  f5 {[%clk 0:02:10]} 12. Qg3 {[%clk 0:02:19]}  Kh8 {[%clk 0:01:58]} 13. Nf3 {[%clk 0:02:14]}  fxe4 {[%clk 0:01:55]} 14. Nxe4 {[%clk 0:02:11]}  Nf5 {[%clk 0:01:56]} 15. Qg6 {[%clk 0:02:03]}  d5 {[%clk 0:01:49]} 16. Neg5 {[%clk 0:01:56]}  Qe8 {[%clk 0:01:02]} 17. Qh7# {[%clk 0:01:53]} 1-0


[Site "https://www.chess.com"]